Cogmind - Beta 9.6 @@@ ROGUE MODE // 2020.06.14 @ 14:47:42 Player: RNGesus Result: Destroyed by S-10 Pest with Light Assault Rifle Performance ------------- Evolutions (1) 500 Regions Visited (4) 800 Robots Destroyed (121) 605 Value Destroyed (2836) 2836 Prototype IDs (5) 100 Alien Tech Used (0) 0 Bonus (389) 389 TOTAL SCORE: 5230 Bonus ------- High Alert Combat Kills 377 Follower Combat Kills 108 Friendly Fire -96 Cogmind --------- Core Integrity 0/400 Matter 280/300 Energy 265/265 System Corruption 1% Temperature Cool (0) Movement Treading (180) Ox1 Location -9/Storage Parts ------- > --- POWER (1) -------- Improved Ion Engine > --- PROPULSION (2) --- Light Treads Improved Treads > --- UTILITY (4) ------ Cooling System Large Storage Unit Large Storage Unit > --- WEAPON (2) ------- Improved Assault Rifle Mini Grenade Launcher > --- INVENTORY (16) --- Improved Treads Improved Flight Unit Improved Flight Unit Improved Flight Unit Improved Flight Unit Improved Heat Sink Medium Storage Unit Improved Sensor Array Medium Armor Plating Pulse Rifle Advanced Beam Cannon Advanced Beam Cannon Heavy Assault Rifle Autogun Mini Grenade Launcher Katana Peak State ------------ > --- POWER ------------ Heavy Ion Engine > --- PROPULSION ------- Improved Treads Improved Treads > --- UTILITY ---------- Cooling System Large Storage Unit Large Storage Unit Improved Targeting Computer > --- WEAPON ----------- Advanced Beam Cannon Advanced Beam Cannon > --- INVENTORY -------- Improved Ion Engine Light Treads Improved Treads Improved Flight Unit Improved Flight Unit Improved Flight Unit Improved Flight Unit Cooling System Medium Storage Unit Improved Sensor Array Medium Armor Plating Pulse Rifle Autogun Improved Assault Rifle Mini Grenade Launcher Mini Grenade Launcher [Rating: 22] Favorites ----------- Power Improved Ion Engine Engine Improved Ion Engine Propulsion Aluminum Leg Treads Light Treads Leg Aluminum Leg Wheel Wheel Flight Unit Improved Flight Unit Utility Large Storage Unit Device Cooling System Storage Large Storage Unit Processor Improved Targeting Computer Protection Improved Propulsion Shielding Weapon Assault Rifle Energy Gun EM Pulse Gun Energy Cannon Advanced Beam Cannon Ballistic Gun Assault Rifle Ballistic Cannon Light Cannon Launcher Grenade Launcher Build | -11 -10 -10 -9 -9 ------- Run | Scr Mat Min Mat Sto Slots Evolved 2 | . . . 2 . Power . | . . . . . Propulsion . | . . . . . Utility 2 | . . . 2 . Weapon . | . . . . . Parts Attached 69 | 6 16 4 30 13 Power 6 | 1 2 1 1 1 Engine 6 | 1 2 1 1 1 Core . | . . . . . Reactor . | . . . . . Propulsion 24 | 2 5 1 11 5 Treads 8 | . . . 3 5 Leg 12 | 2 3 1 6 . Wheel 3 | . 2 . 1 . Hover . | . . . . . Flight 1 | . . . 1 . Utility 11 | 1 4 . 5 1 Device 3 | . 1 . 1 1 Storage 4 | 1 3 . . . Processor 2 | . . . 2 . Hackware . | . . . . . Protection 2 | . . . 2 . Artifact . | . . . . . Weapon 28 | 2 5 2 13 6 Energy Gun 5 | 2 2 . 1 . Energy Cannon 7 | . . . 5 2 Ballistic Gun 7 | . 3 1 1 2 Ballistic Cannon 2 | . . . 2 . Launcher 7 | . . 1 4 2 Special Weapon . | . . . . . Impact Weapon . | . . . . . Slashing Weapon . | . . . . . Piercing Weapon . | . . . . . Special Melee Weapon . | . . . . . Unidentified Prototypes 4 | . . . 4 . Parts Lost 18 | . 3 2 6 7 Power 2 | . . 1 . 1 Propulsion 7 | . 2 1 3 1 Utility 2 | . . . . 2 Weapon 7 | . 1 . 3 3 Highest Loss Streak 4 | . 2 1 1 4 Average Slot Usage (%) 97 | . 99 100 93 98 Engine 12 | . 13 14 11 10 Treads 5 | . . . 3 21 Leg 17 | . 25 28 15 . Wheel 1 | . 1 . 2 . Device 6 | . 3 . 11 10 Storage 23 | . 24 28 22 22 Processor 2 | . . . 2 10 Protection 1 | . . . 5 . Energy Gun 3 | . 14 . . . Energy Cannon 5 | . . . 7 12 Ballistic Gun 12 | . 13 27 2 7 Ballistic Cannon 1 | . . . 5 . Launcher 1 | . . . 3 . Naked Turns . | . . . . . Heaviest Build 54 | 13 42 43 54 52 Greatest Support 46 | 20 20 20 40 46 Greatest Overweight (x) 5 | 3 2 4 5 1 Average Overweight (x) 1 | . . 2 2 1 Largest Inventory Capacity 16 | 6 16 16 16 16 Average Capacity 14 | 5 10 16 16 16 Most Carried 16 | 2 14 14 16 16 Average Carried 12 | 1 8 13 14 15 Final Capacity 16 | 6 16 16 16 16 Final Carried 16 | 2 14 13 16 16 Class Distribution -------------------- 99% | Mutant Dominant Class ---------------- Mutant | -10/Materials Mutant | -10/Mines Mutant | -9/Materials Mutant | -9/Storage Resources | -11 -10 -10 -9 -9 ----------- Run | Scr Mat Min Mat Sto Matter Collected 1475 | 225 299 85 558 308 Remotely . | . . . . . Salvage Created 3650 | . 796 89 1442 1323 Parts 238 | . 52 4 83 99 Haulers Intercepted 12 | . 1 . 6 5 Recyclers Shooed 4 | . 1 . 3 . Parts Field Recycled . | . . . . . Retrieved Matter . | . . . . . Parts Self-Destructed . | . . . . . Prevented . | . . . . . Kills | -11 -10 -10 -9 -9 ------- Run | Scr Mat Min Mat Sto Combat Hostiles Destroyed 85 | . 17 9 30 29 Guns 26 | . 17 3 . 6 Cannons 30 | . . . 16 14 AOE 27 | . . 6 12 9 Classes Destroyed 13 | . 6 1 5 1 Worker 4 | . 3 . 1 . Builder 4 | . . . 3 1 Hauler 12 | . 1 . 6 5 Recycler 2 | . 1 . 1 . Mechanic 2 | . . . . 2 Operator 8 | . 2 . 3 3 Watcher 4 | . . . 2 2 Swarmer 19 | . 6 3 3 7 Grunt 44 | . 11 . 21 12 Brawler 2 | . . . 1 1 Duelist 4 | . . . 1 3 Sentry 10 | . . . 4 6 Assembled 6 | . . 6 . . Best Kill Streak 10 | . 5 6 10 8 Combat Bots Only 7 | . 3 6 7 5 Max Kills in Single Turn 4 | . 1 3 3 4 Gunslinging . | . . . . . Exploded 3 | . . 3 3 3 Melee . | . . . . . Uniques/NPCs Destroyed . | . . . . . Combat | -11 -10 -10 -9 -9 -------- Run | Scr Mat Min Mat Sto Damage Taken 3137 | . 594 282 1020 1241 Core 548 | . 96 48 189 215 Absorbed by Shields . | . . . . . Core Remaining (%) 71 | 100 . 42 . . Volleys Fired 255 | . 65 11 107 72 Largest 2 | . 2 2 2 2 Hottest 136 | . 90 40 70 136 Shots Fired 415 | . 128 18 139 130 Gun 207 | . 128 14 18 47 Cannon 192 | . . . 113 79 Launcher 16 | . . 4 8 4 Special . | . . . . . Kinetic 164 | . 39 14 64 47 Thermal 120 | . 43 . . 77 Explosive 16 | . . 4 8 4 Electromagnetic 115 | . 46 . 67 2 Robot Hit Streak 15 | . 9 6 12 15 Robot Miss Streak 6 | . 6 4 6 3 Penetration Max . | . . . . . Secondary Targets 1 | . . 1 . . Max Gunslinging Chain 1 | . . 1 . . Shots Hit Robots 256 | . 75 9 82 90 Core Hits 172 | . 36 22 58 56 Critical Hits 16 | . 1 . 2 13 Critical Kills 8 | . . . 1 7 Critical Parts Destroyed 8 | . 1 . 1 6 Melee Attacks . | . . . . . Impact . | . . . . . Slashing . | . . . . . Piercing . | . . . . . Sneak Attacks . | . . . . . Combat Hostiles . | . . . . . Follow-up Attacks . | . . . . . Damage Inflicted 7481 | . 1021 604 2908 2948 Guns 1646 | . 979 72 89 506 Cannons 2876 | . . . 1718 1158 Explosions 2959 | . 42 532 1101 1284 Melee . | . . . . . Ramming . | . . . . . Kinetic 1279 | . 229 72 472 506 Thermal 1734 | . 380 . 243 1111 Explosive 2674 | . . 532 858 1284 Electromagnetic 1794 | . 412 . 1335 47 Impact . | . . . . . Slashing . | . . . . . Piercing . | . . . . . Highest Corruption 1 | . . . . 1 Average Corruption 1 | . . . . 1 Corruption Purged . | . . . . . Effects 1 | . . . . 1 Targeting Errors 1 | . . . . 1 Overload Shots . | . . . . . Overflow Damage 107 | . . 9 27 71 Projectiles 45 | . . . 27 18 Explosions 62 | . . 9 . 53 Melee . | . . . . . Knockbacks 2 | . . . 2 . Impact . | . . . . . Kinetic 2 | . . . 2 . Secondary . | . . . . . Self-Inflicted Damage 236 | . . 64 77 95 Shots 8 | . . 3 3 2 Rammed . | . . . . . Targets Rammed . | . . . . . Kicked . | . . . . . Crushed . | . . . . . Highest Temperature 150 | . 150 16 . 87 Average Temperature 40 | . 59 3 . 21 Received Heat Transfer 1139 | . 201 20 420 498 Siege Activations . | . . . . . Robots Corrupted 3 | . . . 3 . Combat Hostiles 2 | . . . 2 . Parts Fried 7 | . . . 7 . Impact Corruptions . | . . . . . Robots Melted . | . . . . . Combat Hostiles . | . . . . . Parts Melted 11 | . 6 . . 5 Heat Transferred 3447 | . 1049 . 400 1998 Parts Sabotaged . | . . . . . Parts Stolen . | . . . . . Parts Stripped . | . . . . . Power Chain Reactions 6 | . 1 . 5 . Missiles Intercepted . | . . . . . Alert | -11 -10 -10 -9 -9 ------- Run | Scr Mat Min Mat Sto Peak Influence 995 | . 272 142 616 995 Average Influence 274 | . 149 52 317 631 Maximum Alert Level 3 | . 1 . 2 3 Low Security (%) 50 | 100 76 100 25 . Level 1 22 | . 23 . 42 18 Level 2 16 | . . . 32 31 Level 3 9 | . . . . 49 Level 4 . | . . . . . Level 5 . | . . . . . High Security . | . . . . . Max Security . | . . . . . Squads Dispatched 16 | . 4 . 7 5 Investigation 7 | . 3 . 4 . Extermination . | . . . . . Reinforcement 7 | . 1 . 3 3 Assault 2 | . . . . 2 Garrison . | . . . . . Intercept . | . . . . . Construction Impeded 1 | . . . 1 . Haulers Reinforced . | . . . . . Stealth | -11 -10 -10 -9 -9 --------- Run | Scr Mat Min Mat Sto Distress Signals 6 | . 1 . 2 3 Communications Jammed . | . . . . . Distress Signals . | . . . . . Times Spotted 150 | . 30 27 46 47 Peak Tracking Total 19 | . 5 19 7 8 Tactical Retreats 5 | . . . 5 . Traps | -11 -10 -10 -9 -9 ------- Run | Scr Mat Min Mat Sto Traps Triggered 8 | . 4 . 1 3 Indirectly . | . . . . . Trap Hack Attempts . | . . . . . Triggered . | . . . . . Disarmed . | . . . . . Reprogrammed . | . . . . . Reused . | . . . . . Traps Extracted . | . . . . . Installed . | . . . . . Triggered 2 | . . . 2 . Machines | -11 -10 -10 -9 -9 ---------- Run | Scr Mat Min Mat Sto Machines Disabled 12 | . 1 1 2 8 Max in Single Turn 3 | . 1 1 1 3 Machines Sabotaged . | . . . . . Garrisons Compromised . | . . . . . Overloaded Fab Kills . | . . . . . Fab Network Shutdowns . | . . . . . Hacking | -11 -10 -10 -9 -9 --------- Run | Scr Mat Min Mat Sto Machines Accessed 12 | . 4 . 5 3 Terminals 9 | . 3 . 3 3 Fabricators . | . . . . . Repair Stations . | . . . . . Recycling Units 2 | . 1 . 1 . Scanalyzers 1 | . . . 1 . Garrison Access . | . . . . . Total Hacks 30 | . 6 . 10 14 Successful 17 | . 5 . 8 4 Failed 13 | . 1 . 2 10 Catastrophic 1 | . . . . 1 Database Lockouts . | . . . . . Manual 21 | . 4 . 4 13 Terminals 24 | . 5 . 5 14 Fabricators . | . . . . . Repair Stations . | . . . . . Recycling Units 2 | . 1 . 1 . Scanalyzers 4 | . . . 4 . Garrison Access . | . . . . . Terminal Hacks 8 | . 3 . 3 2 Part Schematic 2 | . 1 . . 1 Branch Access Points 1 | . . . 1 . Alert Level 1 | . . . . 1 Hauler Manifests 3 | . 1 . 2 . Zone Layout 1 | . 1 . . . Fabricator Hacks . | . . . . . Repair Station Hacks . | . . . . . Recycling Unit Hacks . | . . . . . Scanalyzer 3 | . . . 3 . Insert Component 2 | . . . 2 . Analyze 1 | . . . 1 . Garrison Access Hacks . | . . . . . Unauthorized Hacks 6 | . 2 . 2 2 Terminals 4 | . 1 . 1 2 Botnet 1 | . . . . 1 Operators 3 | . 1 . 1 1 Fabricators . | . . . . . Repair Stations . | . . . . . Recycling Units 2 | . 1 . 1 . Tunnel 2 | . 1 . 1 . Scanalyzers . | . . . . . Garrison Access . | . . . . . Data Cores Recovered 1 | . . . 1 . Used . | . . . . . Hacking Detections 8 | . 2 . 3 3 Full Trace Events . | . . . . . Feedback Events . | . . . . . Feedback Blocked . | . . . . . Robot Schematics Acquired . | . . . . . Robots Built . | . . . . . Matter . | . . . . . Time . | . . . . . Total Robot Build Rating . | . . . . . Part Schematics Acquired 3 | . 1 . 1 1 Parts Built . | . . . . . Matter . | . . . . . Time . | . . . . . Total Part Build Rating . | . . . . . Parts Repaired . | . . . . . Time . | . . . . . Parts Recycled . | . . . . . Recycled Matter . | . . . . . Retrieved Matter . | . . . . . Retrieved Components . | . . . . . Parts Scanalyzed 1 | . . . 1 . Part Schematics Acquired 1 | . . . 1 . Parts Damaged . | . . . . . Bothacking | -11 -10 -10 -9 -9 ------------ Run | Scr Mat Min Mat Sto Used RIF Installer . | . . . . . Robots Hacked . | . . . . . Non-combat . | . . . . . Combat . | . . . . . Robot Hacks Applied . | . . . . . Relay Couplers Released . | . . . . . Robots Rewired . | . . . . . Allies Hacked . | . . . . . Hacks Repelled . | . . . . . Allies | -11 -10 -10 -9 -9 -------- Run | Scr Mat Min Mat Sto Total Allies 5 | . . 3 . 2 Largest Group 3 | . . 3 . 2 Highest-Rated Group 62 | . . 40 . 62 Highest-Rated Ally 31 | . . 16 . 31 Total Orders . | . . . . . Ally Attacks 33 | . . 21 . 12 Total Damage 391 | . . 185 . 206 Kills 7 | . . 4 . 3 Allies Corrupted . | . . . . . Allies Melted . | . . . . . Intel | -11 -10 -10 -9 -9 ------- Run | Scr Mat Min Mat Sto Robot Analysis Total . | . . . . . Derelict Logs Recovered 1 | . . 1 . . Drone Launches . | . . . . . Drone Recoveries . | . . . . . Exploration | -11 -10 -10 -9 -9 ------------- Run | Scr Mat Min Mat Sto Turns Passed 4256 | 54 1036 970 1357 839 Spaces Moved 2064 | 35 576 513 609 331 Core 7 | 7 . . . . Treads 439 | . . . 108 331 Legs 1354 | 28 466 513 347 . Wheels 264 | . 110 . 154 . Hover . | . . . . . Flight . | . . . . . Fastest Speed 50 | 50 90 180 120 180 Average Speed 162 | 126 133 180 168 180 Slowest Speed 270 | 200 180 240 270 180 Overloaded Moves . | . . . . . Propulsion Burnouts . | . . . . . Robots Hopped . | . . . . . Cave-ins Triggered . | . . . . . Exploration Rate (%) 62 | 4 89 98 60 61 Regions Visited 4 Branch Regions 2 Pre-discovered Areas 2 | . 1 . 1 . Known Exits Taken 1 | . . . 1 . Unknown Exits Taken 3 | 1 1 1 . . Scrap Searched 3 | . . 3 . . Spaces Dug 19 | . . 19 . . Terrain Destroyed 131 | . 2 33 46 50 Melee . | . . . . . Projectile . | . . . . . AOE 131 | . 2 33 46 50 Actions | -11 -10 -10 -9 -9 --------- Run | Scr Mat Min Mat Sto Total 2562 | 42 714 542 807 457 Wait 76 | . 31 11 19 15 Move 2060 | 34 575 512 608 331 Hop . | . . . . . Pick Up 48 | 2 16 . 18 12 Fast Attach 30 | 6 11 1 12 . Attach 15 | . 2 2 5 6 Detach 6 | . 1 1 4 . Swap 24 | . 3 1 13 7 Drop 41 | . 10 . 21 10 Fire 255 | . 65 11 107 72 Melee . | . . . . . Ram . | . . . . . Kick . | . . . . . Crush . | . . . . . Escape Stasis 4 | . . . . 4 Rewire 3 | . . 3 . . Trap . | . . . . . Miscellaneous . | . . . . . Route ------- -11/Scrapyard -10/Materials (discovered 4 exits: *Mat x3 / [*Min]) -10/Mines (discovered 3 exits: *Mat x2 / [*Exi]) -9/Materials (discovered 6 exits: [*Mat x2] / *Min x2 / *Sto x2) -9/Storage History --------- Turn | Location | Event 18 | -11/Scrapyard | Discovered new exit (range 15) 55 | -11/Scrapyard | Entered Materials 124 | -10/Materials | Discovered new exit (range 14) 265 | -10/Materials | Discovered new exit (range 11) 305 | -10/Materials | Build established: Mutant 555 | -10/Materials | Discovered new exit (range 8) 665 | -10/Materials | Discovered new exit (range 4) 1091 | -10/Materials | Entered Mines 1102 | -10/Mines | Assisted by bots powering up and referring to "LRC-V3" 1222 | -10/Mines | Discovered new exit (range 9) 1384 | -10/Mines | Discovered new exit (range 13) 1452 | -10/Mines | Deemed a non-threat by the Exiles lab entrance 1452 | -10/Mines | Discovered new exit (range 5) 1550 | -10/Mines | Assembled infested the area 1560 | -10/Mines | Learned Materials stockpile data 1567 | -10/Mines | Core integrity fell below 50% 1576 | -10/Mines | Met 8R-AWN 2061 | -10/Mines | Entered Materials 2061 | -9/Materials | Evolved 2 slots: Utility x2 2340 | -9/Materials | Identified exit to Mines 2340 | -9/Materials | Identified exit to Storage 2618 | -9/Materials | Destroyed 7 combat bots 2682 | -9/Materials | Discovered new exit (range 16) 2987 | -9/Materials | Discovered new exit (range 13) 3026 | -9/Materials | Destroyed 7 combat bots 3418 | -9/Materials | Entered Storage 3570 | -9/Storage | Core integrity fell below 50% 3654 | -9/Storage | Met a pair of Derelict thieves 3947 | -9/Storage | Lost 4 parts (1p1n2w) 4180 | -9/Storage | Core integrity fell below 20% 4257 | -9/Storage | Destroyed by S-10 Pest with Light Assault Rifle Last Messages --------------- 04197_ S-10 Pest destroyed. 04197_ Imp. Targeting Computer destroyed. 04197_ Destroyed Imp. Targeting Computer. 04197_ S-10 Pest destroyed. 04197_ Destroyed Flight Unit. 04197_ S-10 Pest destroyed. 04197_ R-06 Scavenger collects Imp. Medium Laser. 04199_ Acquired 33 matter. 04203_ R-06 Scavenger collects Imp. Medium Laser. 04205_ K-01 Serf collects debris. 04213_ K-01 Serf cleans the Transfer Shaft. 04214_ U-05 Engineer lays Concrete. 04214_ K-01 Serf collects debris. 04215_ The unstable cave ceiling collapses. 04216_ U-05 Engineer lays Concrete. 04217_ K-01 Serf collects debris. 04219_ U-05 Engineer builds a Wall. 04220_ K-01 Serf collects debris. 04257_ C-30 ARC bursts open, deploying its payload. 04257_ S-10 Pest unfolds itself. Map ----- +----------------------------------------------------+ | ?????????????????#+###+########### | | ?????????????????# %^ =! | | ?????????????????+ | | ?????????????????# ^ % | | ?????????????????### ####### | | ???????????????????#^ # | | ???????????????????# + | | ???????????????????# ##### # """ | | ???????????????????# ????# # ! """ | | ???????????????????# ????# #? """ | | ???????????????????# ????# #? | | ???????????????????# ????# #??#### | | ??????????????####?#/????# ####??? | | ??????????????# ? ???###/##T#### | | ??????????????# ?????# # | | ??????????????# ?????# [ # | | ?????????????## ?????# # | | ?????????????"" ????# # | | ??????????????Y =!????# """"" # | | ??????????????? =!????# """"" # | | ???????????????? !!????# """"" # | | ????????????????? ????# # | | ??????############+#########+##### | | ??????# | | ??????# #### | | ??????# @ #??? | | ??????# #####################??? | | ??????+ #??????????????????????? | | ??????# #??????????????????????? | | ??????# #??????????????????????? | | ??????# #??????????????????????? | | ??????# #??????????????????????? | | ??????# s #??????????????????????? | | ??????#sss#??????????????????????? | | ??????# ???????????????????????? | | ??????# ???????????????????????? | | ??????# ???????????????????????? | | ??????# ???????????????????????? | | ??????# ???????????????????????? | | ??????# ???????????????????????? | | ??????? ???????????????????????? | | ?????????????????????????????????? | | ?????????????????????????????????? | | ?????????????????????????????????? | | ?????????????????????????????????? | | ?????????????????????????????????? | | ?????????????????????????????????? | | ?????????????????????????????????? | | ?????????????????????????????????? | | | +----------------------------------------------------+ Best States ------------- Heat Dissipation 50 Energy Generation 14 Energy Capacity 280 Matter Stores 300 Matter Capacity 300 Sight Range 16 Terrain Scan Density 10 Armor Coverage 150 Propulsion Shielding 66 Evasion (%) 44 Targeting Accuracy 6 Recoil Reduction 2 Item Schematics ----------------- Med. Storage Unit | -10/Materials | Hacked Imp. Flight Unit | -9/Materials | Scanalyzed Plasma Cutter | -9/Storage | Hacked Robot Schematics ------------------ None Fabricated ------------ Nothing Alien Tech Used ----------------- None Achievements -------------- None Challenges ------------ None Game ------ Seed PrecisionTransportAxe Manual? 0 Play Time 00:30:01 Cumulative 247.5 hours Start 2020.06.14 @ 14:23:00 End 2020.06.14 @ 14:47:42 Sessions 1 Manual Loads 0 Difficulty Rogue Special Mode None Game No. 403 Rogue 403 Adventurer 0 Explorer 0 Win Type - Total 5 Types 3/0/1/1/0/0/0 Lore% 81 Gallery% 81 Achievement% 61 Wizard Run 0 Options --------- ASCII 0 Keyboard 1 Movement Numpad Keybinds 0 Fullscreen 2 Font 18/X11Bold Map View 76x50 Tactical HUD 1 Map Filters NONE Filters NONE Steam 1 RUN: 629c5b34-f172-4f22-96ab-1ee6a26e0d71